bitfinex/quotes_BTCUSD_20240915
["timestamp","ask_amount","ask_price","bid_price","bid_amount"]
[1726389573548,0.11874521,60208.0,60207.0,1.52042241]
[1726389574513,0.11874521,60208.0,60207.0,1.16990514]
[1726389574728,0.11874521,60208.0,60207.0,1.67004528]
[1726389574939,0.11874521,60208.0,60207.0,1.52042241]
[1726389575634,0.11874521,60208.0,60207.0,1.31953051]
[1726389575871,0.11874521,60208.0,60207.0,1.16990514]
[1726389576090,0.11874521,60208.0,60207.0,1.31953051]
[1726389576552,0.11874521,60208.0,60207.0,1.52042241]
[1726389576994,0.11874521,60208.0,60207.0,1.45951197]
[1726389577203,0.11874521,60208.0,60207.0,1.52044672]
[1726389578781,0.11874521,60208.0,60207.0,1.49423632]
[1726389579047,0.11874521,60208.0,60207.0,1.52044458]
[1726389579488,0.11874521,60208.0,60207.0,1.31955166]
[1726389579704,0.11874521,60208.0,60207.0,1.16992731]
[1726389580150,0.11874521,60208.0,60207.0,1.31955166]
[1726389581264,0.11874521,60208.0,60207.0,1.67006893]
[1726389581795,0.02764521,60208.0,60207.0,1.67006893]
[1726389587319,0.02764521,60208.0,60207.0,2.00225593]
[1726389587558,0.02764521,60208.0,60207.0,1.31955166]
[1726389588094,0.02764521,60208.0,60207.0,1.67037259]
[1726389588565,0.02764521,60208.0,60207.0,1.31985532]
[1726389588778,0.02764521,60208.0,60207.0,1.65204232]
[1726389589281,0.02764521,60208.0,60207.0,2.00255959]
[1726389589726,0.02764521,60208.0,60207.0,1.67037259]
[1726389590276,0.02764521,60208.0,60207.0,1.52074824]
[1726389591130,0.02764521,60208.0,60207.0,1.79169683]
[1726389591349,0.02764521,60208.0,60207.0,1.45950983]
[1726389591544,0.02764521,60208.0,60207.0,1.52091834]
[1726389592367,0.12464521,60208.0,60207.0,1.49550357]
[1726389592776,0.12464521,60208.0,60207.0,1.49631146]
[1726389594869,0.12464521,60208.0,60207.0,1.49629137]
[1726389597442,0.12464521,60208.0,60207.0,1.49646059]
[1726389598748,0.02764521,60208.0,60207.0,1.49646059]
[1726389599188,0.02764521,60208.0,60207.0,1.49645749]
[1726389602765,0.02764521,60208.0,60207.0,1.43507217]
[1726389602996,0.02764521,60208.0,60207.0,1.49648246]
[1726389604610,0.12364521,60208.0,60207.0,1.49648246]
[1726389604846,0.12364521,60208.0,60207.0,1.49648717]
[1726389605764,0.12364521,60208.0,60207.0,1.49650954]
[1726389607227,0.12276363,60208.0,60207.0,1.49650954]
[1726389607869,0.12276363,60208.0,60207.0,1.40093298]
[1726389608094,0.12276363,60208.0,60207.0,1.49650954]
[1726389608317,0.12276363,60208.0,60207.0,1.49646833]
[1726389608970,0.12276363,60208.0,60207.0,1.47286303]
[1726389609211,0.12276363,60208.0,60207.0,1.49646833]
[1726389610601,0.12276363,60208.0,60207.0,1.49640311]
[1726389611918,0.12276363,60208.0,60207.0,1.43502932]
[1726389612134,0.12276363,60208.0,60207.0,1.49624733]
[1726389615294,0.12276363,60208.0,60207.0,1.49629272]
[1726389618732,0.12276363,60208.0,60207.0,1.45861872]
[1726389618979,0.12276363,60208.0,60207.0,1.49629805]
[1726389619253,0.12276363,60208.0,60207.0,1.47274265]
[1726389619469,0.12276363,60208.0,60207.0,1.49628859]
[1726389620119,0.12276363,60208.0,60207.0,1.4962788]
[1726389620331,0.09670623,60208.0,60207.0,1.4962788]
[1726389621218,0.09670623,60208.0,60207.0,1.49628481]
[1726389621670,0.09670623,60208.0,60207.0,1.14479723]
[1726389621892,0.09670623,60208.0,60207.0,1.49628911]
[1726389624755,0.12276487,60208.0,60207.0,1.49628911]
[1726389625677,0.12276487,60208.0,60207.0,1.43506967]
[1726389625924,0.12276487,60208.0,60207.0,1.49644169]
[1726389633621,0.02676487,60208.0,60207.0,1.40086513]
[1726389633839,0.02676487,60208.0,60207.0,1.49644169]
[1726389634046,0.02676487,60208.0,60207.0,1.49653372]
[1726389635809,0.02676487,60208.0,60207.0,1.43506967]
[1726389636062,0.02676487,60208.0,60207.0,1.49636646]
[1726389636943,0.00070623,60208.0,60207.0,1.49636646]
[1726389638480,0.00070623,60208.0,60207.0,1.4007899]
[1726389638725,0.00070623,60208.0,60207.0,1.49636646]
[1726389639171,0.00070623,60208.0,60207.0,1.49639646]
[1726389639832,0.00070623,60208.0,60207.0,1.43509967]
[1726389640056,0.00070623,60208.0,60207.0,1.49624296]
[1726389641590,0.02676482,60208.0,60207.0,1.49624296]
[1726389643985,0.02676482,60208.0,60207.0,1.49621669]
[1726389644850,0.12016482,60208.0,60207.0,1.49621669]
[1726389647518,0.12016482,60208.0,60207.0,1.14472108]
[1726389647962,0.12016482,60208.0,60207.0,1.4964613]
[1726389648180,0.12016482,60208.0,60207.0,1.14472108]
[1726389648402,0.09410623,60208.0,60207.0,1.10709444]
[1726389650530,0.09410623,60208.0,60207.0,1.09917581]
[1726389652874,0.09410623,60208.0,60207.0,1.07565916]
[1726389653324,0.09410623,60208.0,60207.0,1.09925991]
[1726389655967,0.00070623,60208.0,60207.0,1.09925991]
[1726389656618,0.00070623,60208.0,60207.0,1.07565916]
[1726389656838,0.00070623,60208.0,60207.0,1.0993237]
[1726389659920,0.00070623,60208.0,60207.0,1.07565916]
[1726389660142,0.00070623,60208.0,60207.0,1.09931996]
[1726389660363,0.00070623,60208.0,60207.0,1.07565916]
[1726389660672,0.00070623,60208.0,60207.0,1.09931996]
[1726389660996,0.09090623,60208.0,60207.0,1.09931996]
[1726389662732,0.09090623,60208.0,60207.0,1.09929531]
[1726389665223,0.09090623,60208.0,60207.0,1.00371875]
[1726389665433,0.09090623,60208.0,60207.0,1.09929531]
[1726389666317,0.09090623,60208.0,60207.0,1.09928768]
[1726389667523,0.17030623,60208.0,60207.0,1.07565916]
[1726389668447,0.17030623,60208.0,60207.0,1.09924816]
[1726389669872,0.17030623,60208.0,60207.0,1.0992699]
[1726389672784,0.17030623,60208.0,60207.0,1.07565916]
[1726389673020,0.17030623,60208.0,60207.0,1.09928319]
[1726389673307,0.17030623,60208.0,60207.0,1.09928482]
[1726389673777,0.17030623,60208.0,60207.0,1.07565916]
[1726389679230,0.17030623,60208.0,60207.0,1.40784616]
[1726389679444,0.17030623,60208.0,60207.0,1.07565916]
[1726389680333,0.17030623,60208.0,60207.0,1.40784616]
[1726389680773,0.08010623,60208.0,60207.0,1.40784616]
[1726389682115,0.00070623,60208.0,60207.0,1.40784616]
[1726389683776,0.00070623,60208.0,60207.0,1.50404616]
[1726389683846,0.33918125,60230.0,60222.0,0.023]
[1726389684070,0.42098125,60230.0,60229.0,1.04850464]
[1726389684256,0.42098125,60230.0,60229.0,1.35555179]
[1726389684257,0.172,60230.0,60229.0,1.35555179]
[1726389684467,0.172,60230.0,60229.0,1.41834221]
[1726389684666,0.172,60230.0,60229.0,1.45163221]
[1726389685129,0.0818,60230.0,60229.0,1.45163221]
[1726389685300,0.0818,60230.0,60229.0,1.42666641]
[1726389685554,0.09643123,60234.0,60229.0,1.42666641]
[1726389685555,0.083446,60234.0,60233.0,1.16215]
[1726389685768,0.083446,60234.0,60233.0,1.28072656]
[1726389685987,0.001646,60234.0,60233.0,1.31401656]
[1726389686244,0.001646,60234.0,60233.0,1.50515636]
[1726389686454,0.001646,60234.0,60233.0,1.48017648]
[1726389686668,0.001646,60234.0,60233.0,1.49417648]
[1726389687068,0.001646,60234.0,60233.0,1.48017648]
[1726389687283,0.001646,60234.0,60233.0,1.4692502]
[1726389687520,0.001646,60238.0,60233.0,1.4692502]
[1726389687521,0.001646,60238.0,60237.0,0.98191856]
[1726389687729,0.001646,60238.0,60237.0,1.05649942]
[1726389687938,0.001646,60239.0,60238.0,0.88633]
[1726389688143,0.001646,60239.0,60238.0,0.96090958]
[1726389688339,0.001646,60239.0,60238.0,1.33465992]
[1726389688548,0.001646,60239.0,60238.0,1.28497208]
[1726389689852,0.001646,60239.0,60238.0,1.29897208]
[1726389690536,0.001646,60239.0,60238.0,1.31297208]
[1726389696676,0.001646,60239.0,60238.0,1.28497208]
[1726389696951,0.001646,60239.0,60238.0,1.29897208]
[1726389697187,0.02769052,60239.0,60238.0,1.31297208]
[1726389697430,0.02769052,60239.0,60238.0,1.29897208]
[1726389697663,0.02769052,60239.0,60238.0,1.31297208]
[1726389697916,0.02769052,60239.0,60238.0,1.29897208]
[1726389698328,0.02769052,60239.0,60238.0,1.31297208]
[1726389700010,0.02769052,60239.0,60238.0,0.98095608]
[1726389700265,0.02769052,60239.0,60238.0,0.98177908]
[1726389700521,0.02769052,60239.0,60238.0,1.31379508]
[1726389701510,0.02769052,60239.0,60238.0,1.29979508]
[1726389702956,0.02769052,60239.0,60238.0,1.31379508]
[1726389703195,0.02769052,60239.0,60238.0,1.29979508]
[1726389703427,0.02769052,60239.0,60238.0,1.28579508]
[1726389703937,0.02769052,60239.0,60238.0,1.29979508]
[1726389704173,0.02769052,60239.0,60238.0,1.28579508]
[1726389704419,0.02769052,60239.0,60238.0,1.31379508]
[1726389704903,0.02769052,60239.0,60238.0,1.28579508]
[1726389706179,0.02769052,60239.0,60238.0,1.29979508]
[1726389706414,0.02769052,60239.0,60238.0,1.31379508]
[1726389706649,0.02769052,60239.0,60238.0,0.98177908]
[1726389707117,0.02769052,60239.0,60238.0,1.31379508]
[1726389707889,0.02769052,60239.0,60238.0,0.98177908]
[1726389708636,0.02769052,60239.0,60238.0,1.31379508]
[1726389708871,0.001646,60239.0,60238.0,1.31379508]
[1726389710097,0.001646,60239.0,60238.0,0.98177908]
[1726389710577,0.001646,60239.0,60238.0,1.31379508]
[1726389718700,0.001646,60239.0,60238.0,0.98177908]
[1726389719176,0.001646,60239.0,60238.0,1.31379508]
[1726389721209,0.001646,60239.0,60238.0,0.98177908]
[1726389721626,0.001646,60239.0,60238.0,1.04398959]
[1726389722381,0.001646,60239.0,60238.0,1.42556828]
[1726389723262,0.001646,60239.0,60238.0,1.37600559]
[1726389724406,0.001646,60239.0,60238.0,1.45034963]
[1726389725367,0.001646,60239.0,60238.0,1.47513098]
[1726389726269,0.001646,60239.0,60238.0,1.49991233]
[1726389726938,0.02769006,60239.0,60238.0,1.49991233]
[1726389727405,0.02769006,60239.0,60238.0,1.04398959]
[1726389728107,0.001646,60239.0,60238.0,1.37600559]
[1726389728802,0.001646,60239.0,60238.0,1.37575636]
[1726389729269,0.001646,60239.0,60238.0,1.74596877]
[1726389731384,0.001646,60239.0,60238.0,1.68586678]
[1726389733212,0.001646,60239.0,60238.0,1.90670322]
[1726389733678,0.001646,60239.0,60238.0,1.89270322]
[1726389733901,0.001646,60239.0,60238.0,1.91606305]
[1726389734341,0.001646,60239.0,60238.0,1.90206305]
[1726389734572,0.001646,60239.0,60238.0,1.91606305]
[1726389735017,0.001646,60239.0,60238.0,1.93006305]
[1726389735246,0.001646,60239.0,60238.0,1.91606305]
[1726389735694,0.001646,60239.0,60238.0,1.90670322]
[1726389735924,0.001646,60239.0,60238.0,1.93005849]
[1726389736161,0.001646,60239.0,60238.0,1.93018901]
[1726389737733,0.001646,60239.0,60238.0,1.96756179]
[1726389741360,0.001646,60239.0,60238.0,1.74663267]
[1726389741586,0.001646,60239.0,60238.0,1.7468492]
[1726389741999,0.001646,60239.0,60238.0,1.96778002]
[1726389742682,0.001646,60239.0,60238.0,1.90705197]
[1726389742927,0.001646,60239.0,60238.0,1.96774864]
[1726389745816,0.001646,60239.0,60238.0,1.90705197]
[1726389746033,0.001646,60239.0,60238.0,1.96776975]
[1726389746464,0.001646,60239.0,60238.0,1.90705197]
[1726389746678,0.001646,60239.0,60238.0,1.9677713]
[1726389748217,0.001646,60239.0,60238.0,2.02998267]
[1726389748640,0.001646,60239.0,60238.0,1.9677713]
[1726389749077,0.001646,60239.0,60238.0,1.74684048]
[1726389749329,0.001646,60239.0,60238.0,1.9677713]
[1726389749764,0.001646,60239.0,60238.0,2.02998287]
[1726389750450,0.001646,60239.0,60238.0,2.03022673]
[1726389750672,0.001646,60239.0,60238.0,2.02765869]
[1726389753676,0.084046,60239.0,60238.0,1.74451816]
[1726389754133,0.084046,60239.0,60238.0,1.74576774]
[1726389754368,0.084046,60239.0,60238.0,2.02769065]
[1726389757829,0.084046,60239.0,60238.0,1.9666967]
[1726389758067,0.084046,60239.0,60238.0,2.02766109]
[1726389758328,0.084046,60239.0,60238.0,1.99014454]
[1726389758586,0.084046,60239.0,60238.0,2.00421323]
[1726389765314,0.084046,60239.0,60238.0,1.78328427]
[1726389768068,0.084046,60239.0,60238.0,1.78329185]
[1726389770836,0.180346,60239.0,60238.0,1.78329185]
[1726389772435,0.180346,60239.0,60238.0,1.74576774]
[1726389772667,0.180346,60239.0,60238.0,1.78329926]
[1726389775937,0.180346,60239.0,60238.0,1.74576774]
[1726389776200,0.180346,60239.0,60238.0,1.78329701]
[1726389779356,0.180346,60239.0,60238.0,1.41373592]
[1726389779593,0.180346,60239.0,60238.0,1.45125446]
[1726389779828,0.180346,60239.0,60238.0,1.67220373]
[1726389780278,0.180346,60239.0,60238.0,1.63468268]
[1726389780510,0.180346,60239.0,60238.0,1.67220372]
[1726389786282,0.180346,60239.0,60238.0,1.63468268]
[1726389786518,0.180346,60239.0,60238.0,1.67223635]
[1726389786996,0.180346,60239.0,60238.0,1.67224019]
[1726389787701,0.180346,60239.0,60238.0,1.45129343]
[1726389790021,0.180346,60239.0,60238.0,1.45131045]
[1726389790546,0.180346,60239.0,60238.0,1.41373592]
[1726389790775,0.180346,60239.0,60238.0,1.45131045]
[1726389792586,0.180346,60239.0,60238.0,1.54688701]
[1726389793289,0.180346,60239.0,60238.0,1.87890301]
[1726389793542,0.084046,60239.0,60238.0,1.54688701]
[1726389793764,0.084046,60239.0,60238.0,1.50931248]
[1726389793986,0.084046,60239.0,60238.0,1.54694143]
[1726389794665,0.084046,60239.0,60238.0,1.87895743]
[1726389795596,0.084046,60239.0,60238.0,1.87900087]
[1726389797250,0.084046,60239.0,60238.0,1.87791272]
[1726389800536,0.084046,60239.0,60238.0,1.84016594]
[1726389800767,0.084046,60239.0,60238.0,1.87798012]
[1726389800996,0.084046,60239.0,60238.0,1.84016594]
[1726389801235,0.084046,60239.0,60238.0,1.87798012]
[1726389801687,0.084046,60239.0,60238.0,1.87800769]
[1726389801967,0.084046,60239.0,60238.0,1.50914936]
[1726389802188,0.084046,60239.0,60238.0,1.87800489]
[1726389808449,0.084046,60239.0,60238.0,1.81579212]
[1726389808915,0.084046,60239.0,60238.0,1.48377612]
[1726389809366,0.084046,60239.0,60238.0,1.81579212]
[1726389810940,0.084046,60239.0,60238.0,1.81581339]
[1726389811393,0.084046,60239.0,60238.0,1.77797794]
[1726389811620,0.084046,60239.0,60238.0,1.81614498]
[1726389812054,0.084046,60239.0,60238.0,1.48412898]
[1726389812498,0.084046,60239.0,60238.0,1.81614498]
[1726389814836,0.084046,60239.0,60238.0,1.48412898]
[1726389815778,0.084046,60239.0,60238.0,1.81614498]
[1726389816432,0.084046,60239.0,60238.0,1.81585974]
[1726389817813,0.084046,60239.0,60238.0,1.77802166]
[1726389818491,0.084046,60239.0,60238.0,1.81582397]
[1726389819166,0.084046,60239.0,60238.0,1.8394538]
[1726389821193,0.084046,60239.0,60238.0,1.83946111]
[1726389822090,0.084046,60239.0,60238.0,1.83946578]
[1726389825031,0.084046,60239.0,60238.0,1.77802897]
[1726389825249,0.084046,60239.0,60238.0,1.83942007]
[1726389825935,0.084046,60239.0,60238.0,1.83938573]
[1726389827754,0.084046,60239.0,60238.0,1.50736973]
[1726389828254,0.084046,60239.0,60238.0,1.83938573]
[1726389828494,0.084046,60239.0,60238.0,1.77799463]
[1726389828797,0.084046,60239.0,60238.0,1.83941441]
[1726389829687,0.084046,60239.0,60238.0,1.50739841]
[1726389830169,0.084046,60239.0,60238.0,1.83941441]
[1726389830411,0.084046,60239.0,60238.0,1.50739841]
[1726389830638,0.084046,60239.0,60238.0,1.83941441]
[1726389831846,0.084046,60239.0,60238.0,1.77799463]
[1726389832070,0.084046,60239.0,60238.0,1.83938661]
[1726389832296,0.084046,60239.0,60238.0,1.77799463]
[1726389832518,0.084046,60239.0,60238.0,1.83938661]
[1726389833208,0.084046,60239.0,60238.0,1.77799463]
[1726389833415,0.084046,60239.0,60238.0,1.83938232]
[1726389835675,0.084046,60239.0,60238.0,1.83946668]
[1726389838546,0.084046,60239.0,60238.0,1.77807899]
[1726389838772,0.084046,60239.0,60238.0,1.83949206]
[1726389839211,0.084046,60239.0,60238.0,1.7439155]
[1726389839461,0.084046,60239.0,60238.0,1.83949206]
[1726389841267,0.084046,60239.0,60238.0,1.78675698]
[1726389841494,0.084046,60239.0,60238.0,1.84839689]
[1726389842394,0.084046,60239.0,60238.0,1.87209942]
[1726389842618,0.084046,60239.0,60238.0,1.84839176]
[1726389843769,0.084046,60239.0,60238.0,1.84628766]
[1726389846214,0.084046,60239.0,60238.0,1.90850077]
[1726389846919,0.084046,60239.0,60238.0,1.90847602]
[1726389847157,0.084046,60239.0,60238.0,1.90847827]
[1726389848506,0.084046,60239.0,60238.0,1.90849064]
[1726389848921,0.084046,60239.0,60238.0,1.90850039]
[1726389850396,0.084046,60239.0,60238.0,1.84687836]
[1726389850614,0.084046,60239.0,60238.0,1.9085163]
[1726389852654,0.181746,60239.0,60238.0,1.9085163]
[1726389853091,0.181746,60239.0,60238.0,1.90849846]
[1726389853344,0.181746,60239.0,60238.0,1.90851932]
[1726389853825,0.181746,60239.0,60238.0,1.84689922]
[1726389854070,0.181746,60239.0,60238.0,1.90851932]
[1726389854989,0.181746,60239.0,60238.0,1.48092676]
[1726389855208,0.181746,60239.0,60238.0,1.57650332]
[1726389855428,0.181746,60239.0,60238.0,1.90851932]
[1726389855632,0.181746,60239.0,60238.0,1.57150332]
[1726389856318,0.181746,60239.0,60238.0,1.90335607]
[1726389856536,0.181746,60239.0,60238.0,1.57134007]
[1726389857643,0.181746,60239.0,60238.0,1.90335607]
[1726389858077,0.181746,60239.0,60238.0,1.90325448]
[1726389858291,0.181746,60239.0,60238.0,2.12423315]
[1726389858753,0.181746,60239.0,60238.0,1.84104137]
[1726389859391,0.181746,60239.0,60238.0,1.50902537]
[1726389859662,0.181746,60239.0,60238.0,1.84104137]
[1726389859894,0.181746,60239.0,60238.0,1.50902537]
[1726389860523,0.181746,60239.0,60238.0,1.84104137]
[1726389860948,0.181746,60239.0,60238.0,1.50902537]
[1726389861824,0.181746,60239.0,60238.0,1.50946812]
[1726389863382,0.181746,60239.0,60238.0,1.50961342]
[1726389863851,0.181746,60239.0,60238.0,1.50961344]
[1726389867344,0.181746,60239.0,60238.0,1.50961812]
[1726389867801,0.181746,60239.0,60238.0,1.50519327]
[1726389868536,0.181746,60239.0,60238.0,1.50578477]
[1726389870201,0.181746,60239.0,60238.0,1.65539066]
[1726389871537,0.181746,60239.0,60238.0,1.59378381]
[1726389871770,0.181746,60239.0,60238.0,1.65539326]
[1726389872687,0.181746,60239.0,60238.0,1.65430107]
[1726389874554,0.181746,60239.0,60238.0,1.65439639]
[1726389875920,0.181746,60239.0,60238.0,1.65439809]
[1726389877524,0.181746,60239.0,60238.0,1.61641697]
[1726389877788,0.181746,60239.0,60238.0,1.46682153]
[1726389878027,0.181746,60239.0,60238.0,1.61641697]
[1726389878246,0.181746,60239.0,60238.0,1.61641421]
[1726389878685,0.181746,60239.0,60238.0,1.65438224]
[1726389878945,0.181746,60239.0,60238.0,1.61641421]
[1726389879861,0.181746,60239.0,60238.0,1.65437438]
[1726389880111,0.181746,60239.0,60238.0,0.6063495]
[1726389881507,0.181746,60239.0,60238.0,0.582619]
[1726389881748,0.181746,60239.0,60238.0,0.60633021]
[1726389883329,0.181746,60239.0,60238.0,0.63963021]
[1726389885773,0.181746,60239.0,60238.0,0.63964058]
[1726389886471,0.181746,60239.0,60238.0,0.97165658]
[1726389887056,0.20778996,60239.0,60238.0,0.97165658]
[1726389887257,0.20778996,60239.0,60238.0,0.63964058]
[1726389888221,0.181746,60239.0,60238.0,0.63964058]
[1726389888858,0.181746,60239.0,60238.0,0.615919]
[1726389889120,0.181746,60239.0,60238.0,0.63963631]
[1726389890486,0.181746,60239.0,60238.0,0.30762031]
[1726389890698,0.181746,60239.0,60238.0,0.40319687]
[1726389891547,0.20778979,60239.0,60238.0,0.40319687]
[1726389891868,0.181746,60239.0,60238.0,0.37947956]
[1726389892109,0.181746,60239.0,60238.0,0.40320021]
[1726389892334,0.181746,60239.0,60238.0,0.73521621]
[1726389892578,0.181746,60239.0,60238.0,0.7351951]
[1726389894374,0.181746,60239.0,60238.0,0.4031791]
[1726389894589,0.181746,60239.0,60238.0,0.7351951]
[1726389896838,0.181746,60239.0,60238.0,0.73519348]
[1726389897054,0.20778938,60239.0,60238.0,0.73519348]
[1726389899650,0.20778938,60239.0,60238.0,0.52779855]
[1726389899872,0.20778938,60239.0,60238.0,0.85981455]
[1726389900505,0.20778938,60239.0,60238.0,0.73519348]
[1726389902195,0.20778938,60239.0,60238.0,0.24777097]
[1726389902196,0.21237461,60239.0,60238.0,0.24777097]
[1726389902684,0.21237461,60239.0,60238.0,0.12314423]
[1726389902913,0.18633123,60239.0,60238.0,0.12314423]
[1726389903190,0.35233623,60239.0,60238.0,0.2228476]
[1726389903437,0.35233623,60239.0,60238.0,0.31842416]
[1726389903700,0.18633123,60239.0,60238.0,0.31842416]
[1726389904419,0.18633123,60239.0,60238.0,0.21872079]
[1726389904690,0.18633123,60239.0,60238.0,0.29349822]
[1726389904932,0.18633123,60239.0,60238.0,0.21872079]
[1726389905682,0.18633123,60239.0,60238.0,0.29349393]
[1726389906447,0.35233623,60239.0,60238.0,0.29349393]
[1726389906696,0.18633123,60239.0,60238.0,0.29349393]
[1726389909057,0.18633123,60239.0,60238.0,0.29348521]
[1726389910424,0.21237605,60239.0,60238.0,0.29348521]
[1726389911726,0.18633123,60239.0,60238.0,0.29348521]
[1726389913466,0.18633123,60239.0,60238.0,0.26018521]
[1726389914175,0.18633123,60239.0,60238.0,0.26017911]
[1726389917075,0.21237593,60239.0,60238.0,0.26017911]
[1726389918545,0.37838093,60239.0,60238.0,0.26017911]
[1726389921200,0.37838093,60239.0,60238.0,0.29347911]
[1726389921601,0.35233623,60239.0,60238.0,0.29347911]
[1726389922017,0.35233623,60239.0,60238.0,0.29348843]
[1726389923602,0.35233623,60239.0,60238.0,0.29349151]
[1726389928473,0.35233623,60239.0,60238.0,0.26019151]
[1726389928911,0.18633123,60239.0,60238.0,0.26019151]
[1726389929839,0.18633123,60239.0,60238.0,0.28511508]
[1726389930025,0.18633123,60239.0,60238.0,0.26020533]
[1726389930449,0.18633123,60239.0,60238.0,0.18542079]
[1726389936417,0.18633123,60239.0,60238.0,0.21872079]
[1726389937057,0.21237554,60239.0,60238.0,0.21872079]
[1726389938417,0.21237554,60239.0,60238.0,0.31845069]
[1726389940176,0.37838054,60239.0,60238.0,0.31845069]
[1726389941239,0.35233623,60239.0,60238.0,0.31845069]
[1726389941674,0.18633123,60239.0,60238.0,0.31845069]
[1726389942819,0.08863123,60239.0,60238.0,0.31846892]
[1726389943479,0.08863123,60239.0,60238.0,0.21872079]
[1726389945605,0.08863123,60239.0,60238.0,0.34340595]
[1726389951456,0.11467538,60239.0,60238.0,0.31010595]
[1726389951694,0.08863123,60239.0,60238.0,0.31010595]
[1726389953455,0.08863123,60239.0,60238.0,0.47611395]
[1726389956823,0.11467538,60239.0,60238.0,0.47611395]
[1726389957025,0.11467538,60239.0,60238.0,0.47616284]
[1726389957245,0.08863123,60239.0,60238.0,0.47616284]
[1726389957923,0.08863123,60239.0,60238.0,0.38058628]
[1726389958142,0.08863123,60239.0,60238.0,0.47616284]
[1726389958379,0.08863123,60239.0,60238.0,0.50946284]
[1726389959281,0.35103623,60239.0,60238.0,0.24787828]
[1726389959500,0.18503123,60239.0,60238.0,0.24787828]
[1726389959716,0.18503123,60239.0,60238.0,0.41388628]
[1726389960384,0.21107557,60239.0,60238.0,0.24787828]
[1726389960611,0.18503123,60239.0,60238.0,0.24787828]
[1726389960849,0.18503123,60239.0,60238.0,0.41388628]
[1726389961278,0.18503123,60239.0,60238.0,0.24787828]
[1726389962381,0.35103623,60239.0,60238.0,0.24787828]
[1726389962622,0.68304623,60239.0,60238.0,0.19993246]
[1726389963084,0.68304623,60239.0,60238.0,0.10014423]
[1726389964372,0.68304623,60239.0,60238.0,0.08614423]
[1726389964594,0.68304623,60239.0,60238.0,0.07214423]
[1726389964795,0.68304623,60239.0,60238.0,0.10014423]
[1726389965003,0.68304623,60239.0,60238.0,0.08614423]
[1726389965215,0.68304623,60239.0,60238.0,0.16097615]
[1726389965460,0.68304623,60239.0,60238.0,0.11367597]
[1726389965902,0.68304623,60239.0,60238.0,0.12767597]
[1726389966765,0.68304623,60239.0,60238.0,0.11367597]
[1726389966980,0.70909131,60239.0,60238.0,0.11967597]
[1726389967808,0.70909131,60239.0,60238.0,0.12867597]
[1726389968275,0.70909131,60239.0,60238.0,0.11967597]
[1726389968480,0.70909131,60239.0,60238.0,0.12567597]
[1726389971482,1.04110131,60239.0,60238.0,0.12567597]
[1726389971690,0.70909131,60239.0,60238.0,0.12567597]
[1726389972550,0.70909131,60239.0,60238.0,0.11967597]
[1726389972760,0.70909131,60239.0,60238.0,0.11867597]
[1726389973179,0.70909131,60239.0,60238.0,0.04884423]
[1726389973432,0.70909131,60239.0,60238.0,0.04384423]
[1726389974311,0.70909131,60239.0,60238.0,0.03884423]
[1726389974752,0.70909131,60239.0,60238.0,0.04884423]
[1726389975189,0.70909131,60239.0,60238.0,0.04384423]
[1726389975693,0.70909131,60239.0,60238.0,0.04984423]
[1726389975891,0.70909131,60239.0,60238.0,0.04484423]
[1726389976320,0.70909131,60239.0,60238.0,0.05084423]
[1726389985681,1.04110131,60239.0,60238.0,0.05084423]
[1726389986116,1.04110131,60239.0,60238.0,0.012823]
[1726389986759,1.01505623,60239.0,60238.0,0.012823]
[1726389987207,1.34706623,60239.0,60238.0,0.012823]
[1726389987653,1.01505623,60239.0,60238.0,0.012823]
[1726389997036,1.04110216,60239.0,60238.0,0.012823]
[1726389999648,1.04110216,60239.0,60238.0,0.05011632]
[1726389999857,1.04110216,60239.0,60238.0,0.012823]
[1726390001168,0.94470216,60239.0,60238.0,0.012823]
[1726390001414,0.61269216,60239.0,60238.0,0.012823]
[1726390001661,0.94470216,60239.0,60238.0,0.012823]
[1726390001907,0.53029216,60239.0,60238.0,0.10839956]
[1726390004855,0.50424623,60239.0,60238.0,0.10839956]
[1726390006593,0.17223623,60239.0,60238.0,0.10839956]
[1726390007777,0.19828188,60239.0,60238.0,0.10839956]
[1726390013747,0.17223623,60239.0,60238.0,0.10839956]
[1726390016734,0.50424623,60239.0,60238.0,0.012823]
[1726390016970,0.5302918,60239.0,60238.0,0.012823]
[1726390018547,0.5302918,60239.0,60238.0,0.04610129]
[1726390019405,0.5302918,60239.0,60238.0,0.012823]
[1726390020533,0.7070918,60239.0,60238.0,0.012823]
[1726390031429,1.0391018,60239.0,60238.0,0.012823]
[1726390039846,0.9417018,60239.0,60238.0,0.012823]
[1726390043569,0.9417018,60239.0,60238.0,0.0504657]
[1726390043783,0.9417018,60239.0,60238.0,0.09680777]
[1726390045618,0.9417018,60239.0,60238.0,0.0504657]
[1726390048706,0.6096918,60239.0,60238.0,0.0504657]
[1726390053948,0.6096918,60239.0,60238.0,0.51105026]
[1726390053949,0.0322768,60239.0,60238.0,0.51105026]
[1726390054181,0.001646,60239.0,60238.0,0.8664902]
[1726390054405,0.001646,60239.0,60238.0,1.68017452]
[1726390054636,0.001646,60239.0,60238.0,2.0347995]
[1726390054861,0.001646,60239.0,60238.0,1.68017452]
[1726390055084,0.001646,60239.0,60238.0,1.67417452]
[1726390055304,0.001646,60239.0,60238.0,1.5335222]
[1726390055772,0.001646,60239.0,60238.0,1.5608022]
[1726390055999,0.001646,60239.0,60238.0,1.5668022]
[1726390056434,0.001646,60239.0,60238.0,1.5608022]
[1726390056855,0.001646,60239.0,60238.0,1.5748022]
[1726390057282,0.001646,60239.0,60238.0,1.5518022]
[1726390057730,0.001646,60239.0,60238.0,1.5798022]
[1726390057956,0.001646,60239.0,60238.0,1.5658022]
[1726390058196,0.001646,60239.0,60238.0,1.5798022]
[1726390059877,0.001646,60239.0,60238.0,1.58953109]
[1726390062441,0.001646,60239.0,60238.0,1.71396228]
[1726390063442,0.001646,60239.0,60238.0,1.69053834]
[1726390063711,0.001646,60239.0,60238.0,1.71400575]
[1726390064709,0.001646,60239.0,60238.0,1.70000575]
[1726390064954,0.001646,60239.0,60238.0,1.71400575]
[1726390065706,0.001646,60239.0,60238.0,1.68600575]
[1726390065932,0.001646,60239.0,60238.0,1.70000575]
[1726390066162,0.001646,60239.0,60238.0,1.57557456]
[1726390066401,0.001646,60239.0,60238.0,1.56157456]
[1726390066621,0.001646,60239.0,60238.0,1.57557331]
[1726390067735,0.001646,60239.0,60238.0,1.58957331]
[1726390068415,0.001646,60239.0,60238.0,1.07325186]
[1726390068631,0.001646,60239.0,60238.0,0.9527857]
[1726390068890,0.001646,60239.0,60238.0,1.09811335]
[1726390069330,0.001646,60239.0,60238.0,1.00253679]
[1726390069554,0.001646,60239.0,60238.0,1.04836226]
[1726390069779,0.001646,60239.0,60238.0,1.01508226]
[1726390075775,0.001646,60239.0,60238.0,1.06483433]